bitfinex/quotes_BTCUSD_20220212
["timestamp","ask_amount","ask_price","bid_price","bid_amount"]
[1644670743523,0.00218585,42307.0,42305.0,0.00208193]
[1644670743723,0.00244062,42307.0,42305.0,0.28016018]
[1644670744126,0.00244062,42307.0,42305.0,0.00208193]
[1644670744823,0.00244062,42307.0,42305.0,0.20312266]
[1644670744824,0.00218585,42307.0,42305.0,0.20312266]
[1644670745024,0.00244062,42307.0,42305.0,0.20312266]
[1644670745871,0.00218585,42307.0,42305.0,0.20312266]
[1644670746072,0.00244062,42307.0,42305.0,0.20312266]
[1644670746872,0.00218585,42307.0,42305.0,0.20312266]
[1644670747272,0.00218585,42307.0,42306.0,0.27788192]
[1644670747779,0.00218585,42307.0,42305.0,0.20312266]
[1644670748973,0.00210339,42307.0,42305.0,0.20312266]
[1644670750237,0.00068224,42307.0,42305.0,0.20317578]
[1644670753772,0.00068224,42307.0,42305.0,0.20305646]
[1644670754973,0.0007405,42308.0,42305.0,0.20305646]
[1644670755372,0.00025477,42308.0,42305.0,0.20305646]
[1644670755576,0.01,42309.0,42305.0,0.20305646]
[1644670756976,0.01,42309.0,42305.0,0.00196261]
[1644670758025,0.01048891,42309.0,42305.0,0.00196261]
[1644670758426,0.01048891,42309.0,42305.0,0.20305646]
[1644670758826,0.01025477,42309.0,42305.0,0.20305646]
[1644670759027,0.01074368,42309.0,42305.0,0.20305646]
[1644670759226,0.01048891,42309.0,42305.0,0.20305646]
[1644670759825,0.01048891,42309.0,42307.0,0.00151438]
[1644670760027,0.01,42309.0,42307.0,0.00151438]
[1644670760227,0.01048891,42309.0,42307.0,0.00151438]
[1644670760627,0.01074368,42309.0,42307.0,0.00151438]
[1644670760877,0.01048891,42309.0,42307.0,0.00151438]
[1644670761274,0.01,42309.0,42307.0,0.00151438]
[1644670761874,0.01025477,42309.0,42307.0,0.00151438]
[1644670762679,0.01,42309.0,42307.0,0.00151438]
[1644670762878,0.01025477,42309.0,42307.0,0.00151438]
[1644670763778,0.01,42309.0,42307.0,0.00151438]
[1644670764177,0.01025477,42309.0,42307.0,0.00151438]
[1644670764379,0.01025477,42309.0,42307.0,0.27814228]
[1644670764627,0.01025477,42309.0,42307.0,0.00151438]
[1644670765024,0.01025477,42309.0,42306.0,0.20282334]
[1644670765025,0.01,42309.0,42306.0,0.20282334]
[1644670765425,0.01025477,42309.0,42306.0,0.20282334]
[1644670766225,0.01,42309.0,42306.0,0.20282334]
[1644670766426,0.01025477,42309.0,42307.0,0.20109385]
[1644670767430,0.01,42309.0,42308.0,0.47684888]
[1644670768034,0.01,42309.0,42306.0,0.45412425]
[1644670768235,0.01025477,42309.0,42306.0,0.00172949]
[1644670768691,0.01,42309.0,42306.0,0.00172949]
[1644670768888,0.01025477,42309.0,42306.0,0.00172949]
[1644670769089,0.01025477,42309.0,42306.0,0.20282334]
[1644670769289,0.09025477,42309.0,42306.0,0.20282334]
[1644670769490,0.0001,42308.0,42306.0,0.00172949]
[1644670769890,0.0801,42308.0,42306.0,0.00172949]
[1644670770090,0.0001,42307.0,42304.0,0.20243901]
[1644670770489,0.0001,42307.0,42305.0,0.20109385]
[1644670770890,0.08,42306.0,42304.0,0.20243901]
[1644670771094,0.0001,42305.0,42304.0,0.00134516]
[1644670771396,0.0801,42305.0,42304.0,0.00134516]
[1644670771695,0.28047696,42305.0,42304.0,0.00134516]
[1644670771891,0.0801,42305.0,42304.0,0.00134516]
[1644670772624,0.28047696,42305.0,42304.0,0.00134516]
[1644670772826,0.0801,42305.0,42304.0,0.00134516]
[1644670773226,0.28031965,42305.0,42304.0,0.00134516]
[1644670773825,0.49559038,42305.0,42304.0,0.00134516]
[1644670775227,0.49559038,42305.0,42297.0,0.20244283]
[1644670775427,0.0001,42304.0,42297.0,0.00134898]
[1644670775883,0.08,42298.0,42297.0,0.00134898]
[1644670776083,0.07998454,42298.0,42297.0,0.00134898]
[1644670776283,0.12998454,42298.0,42297.0,0.00134898]
[1644670776485,0.34657983,42298.0,42297.0,0.00134898]
[1644670778784,0.56351143,42298.0,42297.0,0.00134898]
[1644670778984,0.12998454,42298.0,42297.0,0.00134898]
[1644670779626,0.07998454,42298.0,42297.0,0.00134898]
[1644670780022,0.07998454,42298.0,42296.0,0.05143752]
[1644670780322,0.30482916,42299.0,42289.0,0.2015824]
[1644670780323,0.07988454,42290.0,42289.0,0.2015824]
[1644670780521,0.11326877,42291.0,42289.0,0.2015824]
[1644670780522,0.11326877,42291.0,42289.0,0.20109385]
[1644670780723,0.11326877,42291.0,42289.0,0.20158239]
[1644670781121,0.16326877,42291.0,42289.0,0.20158239]
[1644670781726,0.16336877,42291.0,42289.0,0.20109385]
[1644670781923,0.16326877,42291.0,42289.0,0.20109385]
[1644670782326,0.16326877,42291.0,42288.0,0.20154427]
[1644670782826,0.09591937,42291.0,42288.0,0.20109385]
[1644670783026,0.09601937,42291.0,42288.0,0.20109385]
[1644670783226,0.09591937,42291.0,42288.0,0.20109385]
[1644670783878,0.09601937,42291.0,42288.0,0.20109385]
[1644670784079,0.09591937,42291.0,42287.0,0.20109385]
[1644670784280,0.09591937,42291.0,42287.0,0.20154428]
[1644670784680,0.09601937,42291.0,42287.0,0.20154428]
[1644670784882,0.09591937,42291.0,42287.0,0.20154428]
[1644670785082,0.09749852,42291.0,42290.0,0.00154881]
[1644670785381,0.04759852,42291.0,42290.0,0.00154881]
[1644670785584,0.09749852,42291.0,42290.0,0.00154881]
[1644670785781,0.09759852,42291.0,42290.0,0.00154881]
[1644670786282,0.04759852,42291.0,42290.0,0.00154881]
[1644670786583,0.09749852,42291.0,42290.0,0.00154881]
[1644670786784,0.09759852,42291.0,42290.0,0.00154881]
[1644670787224,0.04759852,42291.0,42290.0,0.00154881]
[1644670787423,0.09749852,42291.0,42290.0,0.00154881]
[1644670787627,0.04759852,42291.0,42290.0,0.00154881]
[1644670787823,0.09749852,42291.0,42290.0,0.00154881]
[1644670788031,0.09759852,42291.0,42290.0,0.00154881]
[1644670788225,0.04759852,42291.0,42290.0,0.00154881]
[1644670788424,0.09749852,42291.0,42290.0,0.00154881]
[1644670788625,0.04759852,42291.0,42290.0,0.00154881]
[1644670788829,0.04749852,42291.0,42290.0,0.00154881]
[1644670789925,0.04749852,42291.0,42289.0,0.20264266]
[1644670790630,0.04749852,42291.0,42290.0,0.20109385]
[1644670790878,0.04749852,42291.0,42290.0,0.48832131]
[1644670791077,0.04749852,42291.0,42290.0,0.33452746]
[1644670791276,0.04749852,42291.0,42290.0,0.58582837]
[1644670793481,0.04749852,42291.0,42290.0,0.48452746]
[1644670793482,0.02543673,42291.0,42290.0,0.48452746]
[1644670793682,0.119,42311.0,42292.0,0.02117324]
[1644670793883,0.119,42311.0,42298.0,0.20092388]
[1644670793884,0.01,42309.0,42298.0,0.20092388]
[1644670794080,0.01,42309.0,42299.0,0.24822388]
[1644670794081,0.00048789,42304.0,42299.0,0.24822388]
[1644670794282,0.24588666,42303.0,42295.0,0.0473]
[1644670794485,0.0001,42302.0,42295.0,0.0473]
[1644670794733,0.0001,42302.0,42293.0,0.32162388]
[1644670794934,0.0001,42302.0,42294.0,0.20092388]
[1644670795532,0.0001,42302.0,42295.0,0.20092388]
[1644670798381,0.00025477,42308.0,42299.0,0.20092388]
[1644670798582,0.01,42309.0,42296.0,0.0473]
[1644670798583,0.01,42309.0,42300.0,0.24822388]
[1644670798778,0.01,42309.0,42301.0,0.0473]
[1644670798779,0.00025477,42308.0,42301.0,0.0473]
[1644670798979,0.00048741,42304.0,42301.0,0.0473]
[1644670799684,0.00025477,42308.0,42301.0,0.0473]
[1644670799882,0.01,42309.0,42301.0,0.3473]
[1644670800082,0.00048743,42305.0,42303.0,0.20092388]
[1644670800282,0.00048743,42305.0,42304.0,0.24811528]
[1644670800481,0.00025477,42308.0,42307.0,3.966e-05]
[1644670800680,0.01025477,42309.0,42307.0,0.04733966]
[1644670800882,0.00025477,42308.0,42307.0,0.33947744]
[1644670801083,0.01,42309.0,42307.0,0.71665135]
[1644670801281,0.01,42309.0,42308.0,0.35693717]
[1644670801485,0.01,42309.0,42308.0,0.40423717]
[1644670802132,0.01,42309.0,42308.0,0.4072665]
[1644670802528,0.01,42309.0,42308.0,0.4372665]
[1644670804732,0.01,42309.0,42308.0,0.08032933]
[1644670806394,0.01,42309.0,42308.0,0.13032933]
[1644670806795,0.01,42309.0,42308.0,0.44693458]
[1644670807396,0.01,42309.0,42308.0,0.54693458]
[1644670809195,0.01,42309.0,42308.0,0.69113872]
[1644670810327,0.07627754,42323.0,42322.0,0.04563705]
[1644670810726,0.12627754,42323.0,42322.0,0.04563705]
[1644670810926,0.05,42323.0,42322.0,0.04563705]
[1644670811326,0.00025617,42324.0,42322.0,0.04563705]
[1644670811526,0.21847862,42326.0,42322.0,0.04563705]
[1644670811727,0.00025617,42324.0,42322.0,0.04563705]
[1644670811925,0.01525617,42325.0,42322.0,0.04563705]
[1644670812125,0.01275617,42325.0,42322.0,0.04563705]
[1644670812326,0.01275617,42325.0,42324.0,0.00302933]
[1644670814483,0.01275617,42325.0,42324.0,0.14723347]
[1644670815485,0.01285617,42325.0,42324.0,0.14723347]
[1644670817738,0.0001,42325.0,42324.0,0.14723347]
[1644670820546,0.00048682,42327.0,42324.0,0.14723347]
[1644670820741,0.00048682,42327.0,42324.0,0.14420414]
[1644670820983,0.00048682,42327.0,42326.0,0.00302933]
[1644670821183,0.00048682,42327.0,42326.0,0.14420414]
[1644670821383,0.08654178,42327.0,42326.0,0.14420414]
[1644670821584,0.08664178,42327.0,42326.0,0.14420414]
[1644670821784,0.13664178,42327.0,42326.0,0.14420414]
[1644670822387,0.13664178,42327.0,42326.0,0.1445027]
[1644670827731,0.0001,42327.0,42326.0,0.1445027]
[1644670827933,0.00025646,42328.0,42326.0,0.1445027]
[1644670828135,0.01048681,42329.0,42326.0,0.14420414]
[1644670828378,0.01048681,42329.0,42327.0,0.00029856]
[1644670828379,0.00025646,42328.0,42327.0,0.00029856]
[1644670828576,0.01,42329.0,42326.0,0.07210207]
[1644670828777,0.06452494,42328.0,42326.0,0.07210207]
[1644670828978,0.06426848,42328.0,42326.0,0.07210207]
[1644670829178,0.0001,42327.0,42326.0,0.07210207]
[1644670829579,0.26242681,42327.0,42326.0,0.07210207]
[1644670829777,0.26242681,42327.0,42326.0,0.07240063]
[1644670830777,0.0001,42327.0,42326.0,0.07240063]
[1644670831179,0.26326982,42327.0,42326.0,0.07240063]
[1644670831581,0.31326982,42327.0,42326.0,0.07240063]
[1644670831780,0.0501,42327.0,42326.0,0.07240063]
[1644670832228,0.06412494,42328.0,42326.0,0.07240063]
[1644670832426,0.06412494,42328.0,42326.0,0.07210207]
[1644670832628,0.06412494,42328.0,42327.0,0.00029856]
[1644670832827,0.06386848,42328.0,42327.0,0.00029856]
[1644670833530,0.06386848,42328.0,42327.0,0.07240063]
[1644670834027,0.06386848,42328.0,42327.0,0.1445027]
[1644670837576,0.06396848,42328.0,42327.0,0.1445027]
[1644670837777,0.0001,42328.0,42327.0,0.1445027]
[1644670838478,0.01,42329.0,42327.0,0.1445027]
[1644670838676,0.01025646,42329.0,42327.0,0.14420414]
[1644670838880,0.01025646,42329.0,42328.0,0.00029856]
[1644670839077,0.01025646,42329.0,42328.0,0.07240063]
[1644670839078,0.01,42329.0,42328.0,0.07240063]
[1644670839276,0.01,42329.0,42328.0,0.1445027]
[1644670840327,0.01,42329.0,42322.0,0.275596]
[1644670840927,0.00048681,42328.0,42322.0,0.275596]
[1644670841126,0.00074327,42328.0,42323.0,0.06786378]
[1644670841327,0.00074327,42328.0,42327.0,0.00219258]
[1644670841530,0.00048681,42328.0,42327.0,0.00219258]
[1644670841928,0.01,42329.0,42327.0,0.00219258]
[1644670842430,0.01025646,42329.0,42327.0,0.04949258]
[1644670843229,0.01,42329.0,42327.0,0.04949258]
[1644670843483,0.01025646,42329.0,42327.0,0.04949258]
[1644670844086,0.01025646,42329.0,42327.0,0.25029749]
[1644670844483,0.01,42329.0,42327.0,0.25029749]
[1644670844800,0.01025646,42329.0,42328.0,0.28069804]
[1644670844983,0.01,42329.0,42328.0,0.32799804]
[1644670846385,0.01,42329.0,42328.0,0.32912787]
[1644670847635,0.01,42329.0,42328.0,0.04842983]
[1644670848038,0.01,42329.0,42328.0,0.00112983]
[1644670848236,0.0101,42329.0,42328.0,0.00112983]
[1644670848636,0.20335711,42329.0,42328.0,0.00112983]
[1644670848836,0.20345711,42329.0,42328.0,0.00112983]
[1644670849036,0.25345711,42329.0,42328.0,0.00112983]
[1644670849241,0.33509933,42329.0,42328.0,0.00112983]
[1644670850138,0.61265344,42329.0,42328.0,0.00112983]
[1644670851184,0.61265344,42329.0,42327.0,0.00223891]
[1644670851389,0.26456064,42328.0,42327.0,0.00223891]
[1644670851985,0.0001,42328.0,42327.0,0.00223891]
[1644670853586,0.26278513,42328.0,42327.0,0.00223891]
[1644670855430,0.0001,42328.0,42327.0,0.00223891]
[1644670855832,0.0001,42328.0,42327.0,0.00117694]
[1644670856832,0.01035646,42329.0,42327.0,0.00117694]
[1644670857431,0.01025646,42329.0,42327.0,0.00117694]
[1644670857635,0.01,42329.0,42327.0,0.00117694]
[1644670857832,0.01025646,42329.0,42327.0,0.00117694]
[1644670858981,0.01,42329.0,42327.0,0.00117694]
[1644670859281,0.01025646,42329.0,42327.0,0.00117694]
[1644670859682,0.27623197,42329.0,42327.0,0.00117694]
[1644670859980,0.0001,42328.0,42327.0,0.00117694]
[1644670860379,0.01035646,42329.0,42327.0,0.00117694]
[1644670861184,0.27071244,42329.0,42328.0,0.0011082]
[1644670861383,0.27045598,42329.0,42328.0,0.0011082]
[1644670863233,0.27159635,42329.0,42328.0,0.0011082]
[1644670863433,0.0101,42329.0,42328.0,0.0011082]
[1644670865136,0.01530429,42329.0,42328.0,0.0011082]
[1644670866180,0.01030429,42329.0,42328.0,0.0011082]
[1644670866381,0.01030429,42329.0,42328.0,0.00228514]
[1644670867286,0.21087148,42329.0,42328.0,0.00228514]
[1644670868084,0.01030429,42329.0,42328.0,0.00228514]
[1644670869287,0.21087148,42329.0,42328.0,0.00228514]
[1644670870336,0.55,42328.0,42322.0,0.04563705]
[1644670870534,0.0001,42327.0,42322.0,0.04563705]
[1644670870935,0.0008057,42327.0,42322.0,0.04563705]
[1644670871137,0.00054924,42327.0,42322.0,0.04563705]
[1644670871336,0.0008057,42327.0,42322.0,0.04563705]
[1644670871937,0.00035646,42327.0,42322.0,0.04563705]
[1644670872136,0.0008057,42327.0,42322.0,0.04563705]
[1644670872936,0.00035646,42327.0,42322.0,0.04563705]
[1644670873383,0.00080571,42327.0,42322.0,0.04563705]
[1644670874184,0.00035646,42327.0,42322.0,0.04563705]
[1644670874385,0.00080571,42327.0,42322.0,0.04563705]
[1644670875388,0.00035646,42327.0,42322.0,0.04563705]
[1644670875587,0.2013729,42327.0,42322.0,0.04563705]
[1644670875787,0.0001,42326.0,42322.0,0.04563705]
[1644670875987,0.08091874,42325.0,42322.0,0.04563705]
[1644670876188,0.08091874,42325.0,42324.0,0.00180578]
[1644670876388,0.13091874,42325.0,42324.0,0.00180578]
[1644670880734,0.13091874,42325.0,42324.0,0.00372597]
[1644670881383,0.13101874,42325.0,42324.0,0.00372597]
[1644670881786,0.13101874,42325.0,42324.0,0.0099268]
[1644670882788,0.13101874,42325.0,42324.0,0.01184699]
[1644670883787,0.13101874,42325.0,42324.0,0.01376718]
[1644670884831,0.13101874,42325.0,42324.0,0.01568737]
[1644670885034,0.43101874,42325.0,42324.0,0.01568737]
[1644670885238,0.43101874,42325.0,42319.0,0.04916638]
[1644670885239,0.75,42323.0,42319.0,0.04916638]
[1644670885435,0.05,42320.0,42319.0,0.04916638]
[1644670885636,0.3974,42320.0,42318.0,0.03676472]
[1644670885832,0.5509875,42319.0,42318.0,0.03676472]
[1644670886036,0.75,42316.0,42311.0,0.00186325]
[1644670886235,0.75,42316.0,42313.0,0.00186325]
[1644670886236,0.39928975,42314.0,42313.0,0.00186325]
[1644670886434,0.82163975,42314.0,42313.0,0.00186325]
[1644670886632,0.97163975,42314.0,42313.0,6.325e-05]
[1644670886831,0.8,42313.0,42309.0,6.965e-05]
[1644670887034,0.25066248,42310.0,42309.0,6.965e-05]
[1644670887232,0.25066248,42310.0,42309.0,0.0019329]
[1644670887233,0.66749599,42310.0,42309.0,0.0019329]
[1644670887435,0.7324346,42310.0,42309.0,0.0019329]
[1644670887634,0.8824346,42310.0,42309.0,0.0019329]
[1644670888034,0.8324346,42310.0,42309.0,0.0019329]
[1644670888488,1.11040531,42310.0,42309.0,0.0019329]
[1644670888688,0.84639768,42310.0,42309.0,0.0019329]
[1644670890288,0.89639768,42310.0,42309.0,0.0019329]
[1644670891089,0.89791902,42310.0,42309.0,0.00310251]
[1644670892838,0.84791902,42310.0,42307.0,0.00052562]
[1644670893038,0.84791902,42310.0,42302.0,0.00193291]
[1644670893039,0.0001,42309.0,42302.0,0.00193291]
[1644670893241,0.05,42305.0,42302.0,0.00193291]
[1644670893446,0.0474,42304.0,42302.0,0.00186325]
[1644670893838,0.0474,42304.0,42294.0,0.00020606]
[1644670893839,0.45399491,42303.0,42294.0,0.00020606]
[1644670894038,0.06889905,42299.0,42294.0,0.00020606]
[1644670894238,0.11629905,42299.0,42294.0,0.00020606]
[1644670894439,0.11629905,42299.0,42293.0,0.00020606]
[1644670894640,0.26441003,42295.0,42291.0,0.00020606]
[1644670894839,0.31441003,42295.0,42289.0,0.00020606]
[1644670895039,0.31451003,42295.0,42289.0,0.00020606]
[1644670895239,0.31451003,42295.0,42288.0,0.00020606]
[1644670895438,0.31451003,42295.0,42287.0,0.7059435]
[1644670896093,0.31451003,42295.0,42289.0,0.00041176]
[1644670896893,0.57654502,42295.0,42289.0,0.00041176]
[1644670897092,0.57654502,42295.0,42288.0,0.00020606]
[1644670897296,0.57654502,42295.0,42290.0,0.00041175]
[1644670897492,0.77128673,42295.0,42290.0,0.00041175]
[1644670897893,0.57654502,42295.0,42290.0,0.00041175]
[1644670898294,0.57654502,42295.0,42286.0,0.00020606]
[1644670898493,0.57654502,42295.0,42285.0,0.0022]
[1644670898494,0.57654502,42295.0,42290.0,0.0004362]
[1644670899495,0.57654502,42295.0,42286.0,0.00020606]
[1644670899742,0.57654502,42295.0,42290.0,0.0004362]
[1644670900344,0.32630286,42295.0,42290.0,0.0004362]
[1644670900742,0.32630286,42295.0,42286.0,0.00020606]
[1644670900941,0.32630286,42295.0,42290.0,0.0004362]
[1644670901142,0.00168669,42294.0,42292.0,0.00101654]
[1644670902344,0.00168669,42294.0,42292.0,0.0012226]
[1644670903146,0.00168669,42294.0,42292.0,0.00101654]
[1644670903390,0.00168669,42294.0,42292.0,0.0012226]
[1644670903793,0.0473,42293.0,42292.0,0.0012226]
[1644670903993,0.35907067,42293.0,42292.0,0.0012226]
[1644670904192,0.40907067,42293.0,42292.0,0.0012226]
[1644670904390,0.50907067,42293.0,42292.0,0.00101654]
[1644670904588,0.74887844,42293.0,42292.0,0.00101654]
[1644670905190,0.80802644,42293.0,42292.0,0.00101654]
[1644670905792,0.80812644,42293.0,42292.0,0.00101654]
[1644670905991,0.84241687,42293.0,42292.0,0.00101654]
[1644670906190,0.80812644,42293.0,42292.0,0.00101654]
[1644670906390,0.23905422,42292.0,42291.0,0.00122164]
[1644670906592,0.52324107,42292.0,42291.0,0.00101558]
[1644670906789,0.58462652,42292.0,42291.0,0.00101558]
[1644670906990,0.56746118,42292.0,42291.0,0.00101558]
[1644670907240,0.34579249,42292.0,42291.0,0.00101558]
[1644670907441,0.39490757,42292.0,42291.0,0.00101558]
[1644670907641,0.22748149,42292.0,42291.0,0.00101558]
[1644670908041,0.37472451,42292.0,42291.0,0.00101558]
[1644670908242,0.42472451,42292.0,42291.0,0.00101558]
[1644670908440,0.47677124,42292.0,42291.0,0.00101558]
[1644670909245,0.59508224,42292.0,42291.0,0.00101558]
[1644670910042,0.39579249,42292.0,42291.0,0.00101558]
[1644670910244,0.59508224,42292.0,42291.0,0.00101558]
[1644670910886,0.59677181,42292.0,42290.0,0.00020606]
[1644670911092,0.34224692,42291.0,42289.0,0.00140642]
[1644670911287,0.42287258,42290.0,42289.0,0.00140642]
[1644670911488,0.47287258,42290.0,42289.0,0.00096281]
[1644670911688,0.57287258,42290.0,42289.0,0.00096281]
[1644670911892,0.57287258,42290.0,42289.0,0.00116887]
[1644670912988,0.57287258,42290.0,42289.0,0.00096281]
[1644670913587,0.57287258,42290.0,42289.0,0.03096281]
[1644670913788,0.8,42289.0,42288.0,0.00020606]
[1644670913988,0.8,42289.0,42285.0,0.0022]
[1644670913989,0.059159,42288.0,42287.0,0.00041172]
[1644670914188,0.54484066,42288.0,42287.0,0.00041172]
[1644670914388,0.69484066,42288.0,42287.0,0.00041172]
[1644670914842,0.941197,42288.0,42287.0,0.00041172]
[1644670915041,0.941197,42288.0,42286.0,0.00020606]
[1644670915241,0.35927,42287.0,42285.0,0.00240606]
[1644670915442,0.3421121,42286.0,42285.0,0.00240606]
[1644670915641,0.64028808,42286.0,42285.0,0.00240606]
[1644670915841,0.74028808,42286.0,42285.0,0.00240606]
[1644670917943,0.74028808,42286.0,42283.0,0.0043]
[1644670917944,1.25,42285.0,42280.0,0.001]
[1644670918399,0.059166,42283.0,42280.0,0.001]
[1644670918599,0.0473,42282.0,42280.0,0.001]
[1644670918998,0.33178213,42282.0,42280.0,0.001]
[1644670919400,0.43178213,42282.0,42280.0,0.001]
[1644670920201,0.43178213,42282.0,42275.0,0.001]
[1644670920202,0.75,42281.0,42275.0,0.001]
[1644670920403,0.3473,42280.0,42275.0,0.001]
[1644670920603,0.42606249,42279.0,42275.0,0.001]
[1644670920801,0.33321,42276.0,42275.0,0.001]
[1644670921004,0.33321,42274.0,42265.0,0.0021]
[1644670921201,0.48638053,42273.0,42265.0,0.0021]
[1644670921399,0.36861268,42272.0,42265.0,0.0021]
[1644670921601,0.41591268,42272.0,42265.0,0.0021]
[1644670921800,0.1973,42272.0,42265.0,0.0021]
[1644670922646,0.49725522,42272.0,42265.0,0.0021]
[1644670923447,1.49725522,42272.0,42267.0,0.05]
[1644670923946,1.54725522,42272.0,42267.0,0.05]
[1644670924349,1.54725522,42272.0,42265.0,0.0021]
[1644670924954,0.54725522,42272.0,42269.0,0.00047678]
[1644670925996,0.54725522,42272.0,42265.0,0.0021]
[1644670926192,0.54892557,42272.0,42269.0,0.00047678]
[1644670926392,0.54892557,42272.0,42271.0,0.0111265]
[1644670927793,0.24897035,42272.0,42271.0,0.0111265]
[1644670928195,0.14897035,42272.0,42271.0,0.0111265]
[1644670929194,0.10167035,42272.0,42271.0,0.0111265]
[1644670929650,0.05167035,42272.0,42271.0,0.0111265]
[1644670930346,0.2719182,42272.0,42271.0,0.0111265]
[1644670931146,0.27348283,42272.0,42271.0,0.0111265]
[1644670932348,0.32348283,42272.0,42271.0,0.0111265]
[1644670932753,0.92348283,42272.0,42271.0,0.0111265]
[1644670933796,1.42348283,42272.0,42271.0,0.0111265]
[1644670934700,0.78699247,42271.0,42270.0,0.00020517]
[1644670934900,0.78699247,42271.0,42269.0,0.00047619]
[1644670934901,0.37397585,42270.0,42269.0,0.00047619]
[1644670935100,0.08806585,42270.0,42269.0,0.00047619]
[1644670935305,0.28806585,42270.0,42269.0,0.00047619]
[1644670935602,0.28806585,42270.0,42266.0,0.00020517]
[1644670935603,0.059187,42269.0,42266.0,0.00020517]
[1644670935900,0.059187,42269.0,42267.0,0.00020401]
[1644670935901,0.62891965,42268.0,42267.0,0.00020401]
[1644670936102,0.67891965,42268.0,42267.0,0.00020401]
[1644670936300,0.82891965,42268.0,42267.0,0.00020401]
[1644670936701,0.8690724,42268.0,42266.0,0.00020517]
[1644670936899,0.18647165,42266.0,42265.0,0.00278085]
[1644670937143,0.83377165,42266.0,42265.0,0.00278085]
[1644670937344,0.93377165,42266.0,42265.0,0.00278085]
[1644670937946,1.43377165,42266.0,42265.0,0.00230517]
[1644670938744,1.38647165,42266.0,42265.0,0.00230517]
[1644670939144,1.2473,42266.0,42265.0,0.00230517]
[1644670941005,1.24895655,42266.0,42265.0,0.00338999]
[1644670941201,0.6,42264.0,42261.0,0.0132]
[1644670941403,0.0473,42263.0,42261.0,0.0132]
[1644670941601,0.0973,42263.0,42261.0,0.01340519]
[1644670942001,0.0473,42263.0,42261.0,0.01340519]
[1644670942202,0.29855847,42263.0,42261.0,0.01340519]
[1644670943305,0.84855847,42263.0,42261.0,0.01340519]
[1644670943507,1.19832847,42263.0,42261.0,0.01340519]
[1644670943704,0.33321,42262.0,42261.0,0.01340519]
[1644670943904,0.1473,42262.0,42261.0,0.01340519]
[1644670944105,0.48051,42262.0,42261.0,0.01340519]
[1644670944304,0.1473,42262.0,42261.0,0.01340519]
[1644670944750,0.6473,42262.0,42261.0,0.01340519]
[1644670944949,0.5473,42262.0,42261.0,0.01340519]
[1644670945148,0.6473,42262.0,42261.0,0.01340519]
[1644670945548,0.6473,42262.0,42257.0,0.001]
[1644670945549,1.08321,42260.0,42257.0,0.001]
[1644670945757,0.83306008,42261.0,42250.0,0.0032]
[1644670945758,0.859205,42258.0,42250.0,0.0032]
[1644670945954,0.859205,42258.0,42246.0,0.0021]
[1644670945955,0.33321,42256.0,42246.0,0.0021]
[1644670946153,0.33321,42256.0,42242.0,0.0011]
[1644670946154,1.08321,42254.0,42242.0,0.0011]
[1644670946353,1.18321,42254.0,42242.0,0.0011]
[1644670946551,0.23256615,42248.0,42242.0,0.0011]
[1644670946751,0.23256615,42248.0,42246.0,0.00047427]
[1644670946752,0.489724,42247.0,42246.0,0.00047427]
[1644670946949,0.55429719,42247.0,42246.0,0.00047427]
[1644670947150,0.65429719,42247.0,42246.0,0.00047427]
[1644670947749,0.65429719,42247.0,42242.0,0.0011]
[1644670947952,0.26698816,42246.0,42242.0,0.0011]
[1644670948151,0.33321,42245.0,42242.0,0.0011]
[1644670948396,0.33321,42243.0,42242.0,0.0011]
[1644670948595,0.605416,42243.0,42242.0,0.0011]
[1644670948795,0.322206,42243.0,42242.0,0.0011]
[1644670948997,0.322206,42243.0,42241.0,0.0082]
[1644670949194,0.33321,42242.0,42241.0,0.0082]
[1644670949594,0.05,42243.0,42241.0,0.0082]
[1644670949796,0.33321,42242.0,42241.0,0.0082]
[1644670949994,0.02723,42244.0,42241.0,0.0082]
[1644670950398,0.05,42245.0,42241.0,0.0082]
[1644670950696,0.97620116,42246.0,42241.0,0.0082]
[1644670950900,1.02233206,42246.0,42241.0,0.0082]
[1644670951298,0.33321,42244.0,42241.0,0.0082]
[1644670951598,0.65,42245.0,42241.0,0.00043812]
[1644670951797,0.1,42244.0,42241.0,0.00043812]
[1644670952248,0.33321,42242.0,42241.0,0.00043812]
[1644670952549,0.53051,42242.0,42239.0,0.0078507]
[1644670952744,0.1973,42242.0,42239.0,0.00828883]
[1644670953146,0.06985166,42240.0,42239.0,0.00828883]
[1644670953345,0.04052202,42241.0,42239.0,0.00828883]
[1644670953546,0.0473,42240.0,42239.0,0.00828883]
[1644670953745,0.0473,42240.0,42239.0,0.0078507]
[1644670954348,0.55,42244.0,42239.0,0.08795823]
[1644670954349,0.5,42244.0,42239.0,0.08795823]
[1644670954648,0.00162375,42247.0,42240.0,0.44189999]
[1644670955145,0.00162375,42247.0,42240.0,0.37474525]
[1644670955345,0.00162375,42247.0,42240.0,0.369946]
[1644670955544,0.00162375,42247.0,42240.0,0.4532124]
[1644670955744,0.00162375,42247.0,42241.0,0.3]
[1644670956005,0.16116825,42261.0,42242.0,0.0473]
[1644670956503,0.5,42262.0,42243.0,0.059179]
[1644670956705,0.5,42262.0,42242.0,0.0473]
[1644670956706,0.24858297,42260.0,42250.0,0.26945079]
[1644670957104,0.24858297,42260.0,42248.0,0.0473]
[1644670957308,0.24858297,42260.0,42244.0,0.04548652]
[1644670957309,0.33321,42259.0,42244.0,0.04548652]
[1644670957504,0.33321,42259.0,42245.0,0.3]
[1644670957505,0.059196,42259.0,42245.0,0.3]
[1644670957807,0.059196,42259.0,42241.0,0.3473]
[1644670958004,0.26265826,42251.0,42242.0,0.52114965]
[1644670958206,0.13226717,42248.0,42241.0,0.0473]
[1644670959006,0.05,42248.0,42241.0,0.0473]
[1644670959207,0.31265826,42251.0,42241.0,0.24192258]
[1644670959655,0.05,42251.0,42241.0,0.24192258]
[1644670959847,0.05,42251.0,42241.0,0.29192258]
[1644670960046,0.3,42257.0,42244.0,0.06815535]
[1644670960246,0.0001,42267.0,42245.0,0.0473]
[1644670960445,0.5001,42267.0,42245.0,0.0473]
[1644670960647,0.25144054,42264.0,42255.0,0.22509158]
[1644670960846,0.3,42263.0,42255.0,0.22509158]
[1644670961349,0.08716613,42261.0,42255.0,0.22509158]
[1644670961550,0.35,42263.0,42262.0,0.17433225]
[1644670961748,0.22259306,42263.0,42262.0,0.17433225]
[1644670962148,0.55580306,42263.0,42262.0,0.17433225]
[1644670962348,0.49810967,42263.0,42262.0,0.17433225]
[1644670963048,0.22259306,42263.0,42262.0,0.17433225]
[1644670963248,0.15,42263.0,42262.0,0.17433225]
[1644670963497,0.05,42263.0,42262.0,0.17433225]
[1644670964899,0.0001,42269.0,42262.0,0.17433225]